bitfinex-derivatives/quotes_SOLF0:USTF0_20250626
["timestamp","ask_amount","ask_price","bid_price","bid_amount"]
[1750902836832,6.8895,145.07,145.04,8.36286475]
[1750902837039,39.08,145.1,145.05,3.41454427]
[1750902837841,39.08,145.1,145.05,11.77740902]
[1750902838151,45.9681,145.1,145.05,18.66730902]
[1750902838341,39.08,145.1,145.05,11.77740902]
[1750902839044,6.8888,145.09,145.05,11.77740902]
[1750902840042,45.9682,145.1,145.05,11.77740902]
[1750902840344,6.8882,145.1,145.05,11.77740902]
[1750902840844,6.8882,145.1,145.06,8.36286475]
[1750902841635,6.8882,145.1,145.06,15.25266475]
[1750902844444,6.8882,145.1,145.06,6.8898]
[1750902844638,6.8882,145.1,145.07,2.3332]
[1750902845446,6.8876,145.11,145.07,12.63714427]
[1750902845747,6.8876,145.11,145.08,8.36286475]
[1750902845942,39.08,145.13,145.09,3.41454427]
[1750902846143,633.84,145.16,145.09,3.41454427]
[1750902846650,6.8873,145.12,145.09,3.41454427]
[1750902847350,6.8866,145.13,145.09,18.66580902]
[1750902847551,633.84,145.16,145.09,18.66580902]
[1750902847552,633.84,145.16,145.09,11.77740902]
[1750902847740,633.84,145.16,145.09,3.41454427]
[1750902847940,6.887,145.12,145.09,3.41454427]
[1750902848343,633.84,145.16,145.09,3.41454427]
[1750902848648,3.41454427,145.15,145.08,8.36286475]
[1750902850639,6.8871,145.12,145.08,15.25176475]
[1750902851152,6.8871,145.12,145.09,8.36286475]
[1750902851650,6.8866,145.13,145.09,8.36286475]
[1750902852251,3.41454427,145.15,145.1,8.36286475]
[1750902852558,633.84,145.16,145.1,8.36286475]
[1750902853651,6.8864,145.14,145.1,15.25066475]
[1750902853852,6.8864,145.14,145.11,3.41454427]
[1750902854056,6.8864,145.14,145.12,8.36286475]
[1750902855250,38.78,145.19,145.13,3.41454427]
[1750902855447,38.78,145.19,145.13,11.77740902]
[1750902855855,6.8855,145.16,145.13,11.77740902]
[1750902858759,6.8855,145.16,145.13,3.41454427]
[1750902859757,3.41454427,145.18,145.1,127.4347]
[1750902859950,3.41454427,145.16,145.08,127.4439]
[1750902860152,3.41454427,145.14,145.08,2.4439]
[1750902861761,6.8879,145.11,145.08,2.4439]
[1750902862660,6.888,145.1,145.08,2.4439]
[1750902862862,3.41454427,145.14,145.08,2.4439]
[1750902864064,6.8881,145.1,145.08,2.4439]
[1750902864363,3.41454427,145.14,145.08,2.4439]
[1750902865263,6.888,145.1,145.08,2.4439]
[1750902865450,3.41454427,145.14,145.08,2.4439]
[1750902865651,3.41454427,145.14,145.06,38.78]
[1750902866565,6.8884,145.09,145.06,38.78]
[1750902868468,6.8881,145.1,145.06,38.78]
[1750902869562,6.8885,145.09,145.06,38.78]
[1750902871467,6.8889,145.08,145.06,38.78]
[1750902874469,3.41454427,145.14,145.06,38.78]
[1750902875469,3.41454427,145.14,145.07,3.41454427]
[1750902875669,38.78,145.15,145.09,3.41454427]
[1750902875866,38.78,145.15,145.1,2.4254]
[1750902876062,6.8864,145.14,145.1,2.4254]
[1750902876261,38.78,145.15,145.1,2.4254]
[1750902877673,6.8866,145.13,145.1,2.4254]
[1750902878667,38.78,145.15,145.1,9.3133]
[1750902878874,38.48,145.19,145.13,3.41454427]
[1750902879869,6.885,145.17,145.13,3.41454427]
[1750902880071,41.89454427,145.19,145.11,8.07504427]
[1750902880271,41.89454427,145.19,145.11,3.41454427]
[1750902881175,6.886,145.15,145.11,3.41454427]
[1750902882475,6.8853,145.16,145.11,10.30204427]
[1750902882774,6.8853,145.16,145.11,3.41454427]
[1750902883576,6.8853,145.16,145.12,6.887]
[1750902883775,6.8853,145.16,145.11,3.41454427]
[1750902884479,6.8853,145.16,145.11,10.30194427]
[1750902885085,6.8853,145.16,145.11,135.30194427]
[1750902885376,6.8857,145.15,145.11,135.30194427]
[1750902886176,6.8853,145.16,145.12,6.887]
[1750902886374,6.8853,145.16,145.13,3.41454427]
[1750902886673,6.8857,145.15,145.11,131.8874]
[1750902886878,6.8857,145.15,145.12,3.41454427]
[1750902890381,38.48,145.19,145.11,125.0]
[1750902890382,41.89454427,145.19,145.11,125.0]
[1750902890582,3.41454427,145.17,145.14,1.156e-05]
[1750902891590,6.8856,145.15,145.14,1.156e-05]
[1750902892486,6.8856,145.15,145.13,8.44687401]
[1750902892991,6.8861,145.14,145.13,8.44687401]
[1750902893495,6.8861,145.14,145.12,8.44687401]
[1750902896398,6.8865,145.13,145.12,8.44687401]
[1750902896797,41.89454427,145.15,145.09,8.44687401]
[1750902896993,6.888,145.1,145.09,8.44687401]
[1750902898506,6.888,145.1,145.08,8.44687401]
[1750902900497,41.89454427,145.15,145.08,11.86141828]
[1750902900697,38.48,145.15,145.11,8.44687401]
[1750902900893,40.8369,145.18,145.12,11.86141828]
[1750902901201,6.8856,145.15,145.12,11.86141828]
[1750902902000,44.25144427,145.18,145.12,8.44687401]
[1750902902195,44.25144427,145.18,145.11,8.44687401]
[1750902903391,2.3585,145.17,145.11,8.44687401]
[1750902904504,6.887,145.12,145.11,8.44687401]
[1750902908812,6.8867,145.13,145.11,8.44687401]
[1750902909616,6.887,145.12,145.11,8.44687401]
[1750902911512,6.887,145.12,145.1,148.12687401]
[1750902911815,6.887,145.12,145.11,8.44687401]
[1750902912715,5.77304427,145.17,145.11,8.44687401]
[1750902912909,40.8369,145.18,145.11,8.44687401]
[1750902912910,38.48,145.18,145.12,11.86141828]
[1750902913110,6.8855,145.16,145.14,8.44687401]
[1750902914615,6.8856,145.15,145.14,8.44687401]
[1750902915213,6.8853,145.16,145.14,8.44687401]
[1750902916119,6.8848,145.17,145.14,8.44687401]
[1750902916412,38.48,145.18,145.15,8.44687401]
[1750902917516,6.8851,145.16,145.15,8.44687401]
[1750902918712,595.1,145.23,145.14,3.41454427]
[1750902918713,6.8833,145.2,145.14,3.41454427]
[1750902919014,6.8833,145.2,145.19,8.43885952]
[1750902919717,6.8833,145.2,145.18,8.43885952]
[1750902921116,6.8829,145.21,145.18,8.43885952]
[1750902921914,38.2,145.24,145.19,3.41454427]
[1750902922219,38.2,145.24,145.19,11.85340379]
[1750902923710,6.8823,145.22,145.19,11.85340379]
[1750902923912,38.2,145.24,145.19,11.85340379]
[1750902924518,6.8821,145.23,145.19,11.85340379]
[1750902925622,6.8823,145.22,145.19,11.85340379]
[1750902925918,38.2,145.24,145.19,8.43885952]
[1750902926122,6.8825,145.22,145.19,8.43885952]
[1750902926326,38.2,145.24,145.19,8.43885952]
[1750902927621,6.8826,145.22,145.19,8.43885952]
[1750902928325,6.8826,145.22,145.18,11.85340379]
[1750902929124,38.18,145.27,145.2,3.41454427]
[1750902929528,38.18,145.27,145.22,3.41454427]
[1750902929917,139.2,145.35,145.22,3.41454427]
[1750902929918,38.18,145.33,145.26,3.41454427]
[1750902930123,41.59454427,145.36,145.28,3.41454427]
[1750902930326,6.8772,145.33,145.3,3.41454427]
[1750902930525,41.59454427,145.36,145.3,3.41454427]
[1750902930819,6.8774,145.33,145.29,3.41454427]
[1750902931122,42.7282,145.37,145.31,3.41454427]
[1750902931824,41.59454427,145.42,145.33,3.41454427]
[1750902932524,6.875,145.38,145.33,10.29154427]
[1750902932830,40.4113,145.42,145.35,3.41454427]
[1750902933719,6.8738,145.4,145.35,3.41454427]
[1750902934026,40.4113,145.42,145.35,3.41454427]
[1750902934524,43.82584427,145.42,145.35,3.41454427]
[1750902935120,6.8749,145.38,145.35,3.41454427]
[1750902935616,6.8738,145.4,145.35,3.41454427]
[1750902936323,6.8744,145.39,145.35,3.41454427]
[1750902936621,43.82584427,145.42,145.35,3.41454427]
[1750902937633,6.8738,145.4,145.35,3.41454427]
[1750902939228,6.8743,145.39,145.35,3.41454427]
[1750902940634,6.8743,145.39,145.33,131.877]
[1750902940635,43.82584427,145.42,145.33,125.0]
[1750902940834,43.82584427,145.42,145.34,3.41454427]
[1750902941722,3.41454427,145.4,145.33,128.41454427]
[1750902942033,6.8761,145.36,145.33,128.41454427]
[1750902942222,6.8761,145.36,145.33,3.41454427]
[1750902942420,41.29454427,145.38,145.3,42.4375]
[1750902942623,3.41454427,145.34,145.27,2.2759]
[1750902942827,3.41454427,145.32,145.23,10.29594427]
[1750902943036,3.41454427,145.3,145.23,10.29594427]
[1750902943536,6.8798,145.28,145.23,3.41454427]
[1750902943720,3.41454427,145.3,145.23,3.41454427]
[1750902943920,3.41454427,145.3,145.22,646.7438]
[1750902944128,6.8795,145.28,145.23,3.41454427]
[1750902944823,3.41454427,145.3,145.23,3.41454427]
[1750902945029,41.29454427,145.3,145.23,3.41454427]
[1750902945935,6.8802,145.27,145.23,3.41454427]
[1750902946336,41.29454427,145.3,145.23,3.41454427]
[1750902946532,3.41454427,145.28,145.22,40.3152]
[1750902946930,3.41454427,145.28,145.22,2.4352]
[1750902947235,3.41454427,145.28,145.19,41.29454427]
[1750902947736,3.41454427,145.28,145.19,48.17804427]
[1750902947737,6.8817,145.24,145.19,48.17804427]
[1750902949740,6.8819,145.23,145.19,48.17804427]
[1750902951238,6.8814,145.24,145.19,48.17804427]
[1750902951638,41.29454427,145.26,145.19,41.29454427]
[1750902952036,6.8822,145.23,145.19,41.29454427]
[1750902953040,6.8824,145.22,145.19,41.29454427]
[1750902953441,41.29454427,145.26,145.19,37.88]
[1750902953640,3.41454427,145.24,145.17,148.95393611]
[1750902954045,3.41454427,145.22,145.16,40.172]
[1750902954337,3.41454427,145.24,145.16,43.58654427]
[1750902955142,3.41454427,145.24,145.16,50.47134427]
[1750902955540,3.41454427,145.24,145.16,43.58654427]
[1750902956347,4.5532,145.25,145.18,3.41454427]
[1750902957436,2.2702,145.25,145.2,3.41454427]
[1750902957636,37.88,145.26,145.2,3.41454427]
[1750902958645,6.8817,145.24,145.2,10.29764427]
[1750902958853,37.88,145.26,145.2,3.41454427]
[1750902959050,6.8822,145.23,145.18,10.29864427]
[1750902960145,41.29454427,145.26,145.18,10.29864427]
[1750902960638,41.29454427,145.26,145.19,6.8836]
[1750902961845,41.29454427,145.26,145.18,10.29854427]
[1750902962046,6.8822,145.23,145.18,10.29854427]
[1750902962441,6.8822,145.23,145.19,6.8837]
[1750902962741,41.29454427,145.26,145.18,3.41454427]
[1750902963148,41.29454427,145.26,145.18,10.29864427]
[1750902963657,41.29454427,145.26,145.18,6.8841]
[1750902963846,41.29454427,145.26,145.18,3.41454427]
[1750902964054,3.41454427,145.24,145.18,3.41454427]
[1750902964348,6.8826,145.22,145.18,10.29874427]
[1750902964558,3.41454427,145.24,145.17,3.41454427]
[1750902965552,6.8831,145.21,145.17,3.41454427]
[1750902966661,6.8831,145.21,145.17,10.29914427]
[1750902967655,3.41454427,145.24,145.16,46.40206101]
[1750902967855,41.09454427,145.22,145.16,40.172]
[1750902968161,41.09454427,145.22,145.13,41.09454427]
[1750902968162,3.41454427,145.2,145.13,41.09454427]
[1750902968359,6.8849,145.17,145.13,41.09454427]
[1750902968750,3.41454427,145.2,145.13,41.09454427]
[1750902969760,6.885,145.17,145.13,41.09454427]
[1750902971056,6.8852,145.16,145.13,41.09454427]
[1750902972062,6.8856,145.15,145.13,37.68]
[1750902972251,41.09454427,145.18,145.11,2.3728]
[1750902972451,37.68,145.17,145.11,2.3728]
[1750902973054,3.41454427,145.16,145.09,10.96236101]
[1750902973263,3.41454427,145.16,145.08,3.41454427]
[1750902973759,3.41454427,145.16,145.08,10.30324427]
[1750902974353,3.41454427,145.16,145.09,6.8884]
[1750902974748,3.41454427,145.16,145.08,3.41454427]
[1750902975463,6.8869,145.13,145.08,10.30334427]
[1750902976753,3.41454427,145.16,145.08,3.41454427]
[1750902977359,3.41454427,145.14,145.06,5.69224427]
[1750902977566,37.7,145.13,145.06,5.69224427]
[1750902977959,6.8881,145.1,145.06,5.69224427]
[1750902978355,37.7,145.13,145.06,5.69224427]
[1750902978356,3.41454427,145.12,145.06,2.2777]
[1750902979467,6.8886,145.09,145.06,2.2777]
[1750902980363,6.889,145.08,145.06,2.2777]
[1750902981066,6.889,145.08,145.04,41.11454427]
[1750902981262,37.7,145.09,145.02,8.55796101]
[1750902981469,37.7,145.09,145.02,11.97250528]
[1750902981661,6.8898,145.07,145.02,18.86390528]
[1750902981856,37.7,145.09,145.02,11.97250528]
[1750902982364,37.7,145.09,145.04,3.41454427]
[1750902982571,37.7,145.13,145.06,3.41454427]
[1750902983861,6.8884,145.1,145.06,10.30434427]
[1750902984062,37.7,145.13,145.06,3.41454427]
[1750902984371,6.8878,145.11,145.07,6.889]
[1750902985460,44.587,145.13,145.08,10.30334427]
[1750902985657,44.587,145.13,145.08,3.41454427]
[1750902985864,37.7,145.13,145.09,2.4356]
[1750902986061,6.8873,145.12,145.09,2.4356]
[1750902987058,37.7,145.13,145.09,2.4356]
[1750902987266,6.8865,145.14,145.09,9.3237]
[1750902987467,6.8861,145.14,145.09,9.3237]
[1750902988076,6.8866,145.13,145.09,9.3237]
[1750902989574,6.8866,145.13,145.09,15.55376101]
[1750902992675,6.8862,145.14,145.1,6.8879]
[1750902992976,37.7,145.16,145.09,8.66566101]
[1750902993571,37.7,145.16,145.09,15.55396101]
[1750902993974,37.7,145.16,145.1,6.23006101]
[1750902994376,37.7,145.16,145.1,9.64460528]
[1750902995368,6.8856,145.15,145.11,6.8871]
[1750902995572,6.8856,145.15,145.11,13.11716101]
[1750902998578,6.8856,145.15,145.1,6.23006101]
[1750902998579,3.41454427,145.15,145.1,6.23006101]
[1750902998778,3.41454427,145.15,145.09,2.4356]
[1750902999280,6.887,145.12,145.09,2.4356]
[1750902999675,6.887,145.12,145.09,8.66566101]
[1750903000177,3.41454427,145.15,145.09,8.66566101]
[1750903000178,41.11454427,145.16,145.09,8.66566101]
[1750903000477,41.11454427,145.16,145.1,6.23006101]
[1750903000971,41.11454427,145.16,145.09,8.66566101]
[1750903001169,37.7,145.16,145.09,8.66566101]
[1750903001574,6.8864,145.14,145.09,8.66566101]
[1750903001775,6.8864,145.14,145.09,15.55396101]
[1750903002477,6.8864,145.14,145.1,6.23006101]
[1750903002981,6.8864,145.14,145.11,6.23006101]
[1750903005387,6.8857,145.15,145.11,13.11746101]
[1750903005696,6.8857,145.15,145.12,6.23006101]
[1750903006583,39.9143,145.19,145.14,3.41454427]
[1750903006783,37.48,145.19,145.16,3.41454427]
[1750903006977,37.48,145.19,145.16,10.29964427]
[1750903007281,37.48,145.22,145.18,6.23006101]
[1750903007686,6.8828,145.21,145.18,6.23006101]
[1750903007887,37.48,145.22,145.18,6.23006101]
[1750903009888,6.8835,145.2,145.18,6.23006101]
[1750903011178,6.8835,145.2,145.19,6.23006101]
[1750903011893,6.8829,145.21,145.19,6.23006101]
[1750903012101,37.48,145.25,145.19,9.64460528]
[1750903012393,37.48,145.25,145.22,6.23006101]
[1750903012588,6.8818,145.24,145.22,6.23006101]
[1750903013396,37.48,145.25,145.21,9.64460528]
[1750903013594,37.48,145.25,145.22,6.23006101]
[1750903013990,6.8818,145.23,145.22,6.23006101]
[1750903014184,6.8818,145.23,145.21,9.64460528]
[1750903014792,3.41454427,145.24,145.19,6.23006101]
[1750903014994,3.41454427,145.24,145.18,6.23006101]
[1750903015300,6.8827,145.22,145.19,6.23006101]
[1750903015484,3.41454427,145.24,145.19,6.23006101]
[1750903015692,3.41454427,145.24,145.17,8.43885952]
[1750903015693,3.41454427,145.24,145.17,6.23006101]
[1750903016095,6.8836,145.2,145.17,6.23006101]
[1750903020298,6.8836,145.2,145.16,6.23006101]
[1750903020501,6.8836,145.2,145.17,6.23006101]
[1750903022094,3.41454427,145.24,145.17,9.64460528]
[1750903022296,37.48,145.25,145.21,3.41454427]
[1750903022600,599.5711,145.27,145.21,9.64460528]
[1750903022601,2.3076,145.27,145.21,9.64460528]
[1750903023199,6.8812,145.25,145.21,9.64460528]
[1750903023900,6.8812,145.25,145.21,16.52730528]
[1750903024992,2.3076,145.27,145.21,3.41454427]
[1750903025893,2.3076,145.27,145.2,6.23006101]
[1750903026203,6.8817,145.24,145.2,6.23006101]
[1750903026398,40.87454427,145.24,145.2,6.23006101]
[1750903026702,6.8832,145.2,145.16,131.23006101]
[1750903026905,6.8832,145.2,145.16,6.23006101]
[1750903027098,6.8829,145.21,145.17,6.23006101]
[1750903027399,40.87454427,145.24,145.18,6.23006101]
[1750903027601,6.8827,145.22,145.17,16.52910528]
[1750903028401,6.8828,145.21,145.17,16.52910528]
[1750903028602,40.87454427,145.24,145.17,9.64460528]
[1750903028900,40.87454427,145.24,145.17,6.23006101]
[1750903029302,6.8832,145.21,145.17,6.23006101]
[1750903029603,40.87454427,145.24,145.17,6.23006101]
[1750903030501,6.8833,145.2,145.17,6.23006101]
[1750903030702,40.87454427,145.24,145.17,6.23006101]
[1750903030895,3.41454427,145.22,145.17,6.23006101]
[1750903031593,6.8836,145.2,145.17,6.23006101]
[1750903032492,6.8837,145.19,145.17,6.23006101]
[1750903032698,5.80614427,145.23,145.17,6.23006101]
[1750903032998,6.8841,145.19,145.15,6.23006101]
[1750903033400,37.26,145.2,145.15,6.23006101]
[1750903033794,6.8838,145.19,145.15,6.23006101]
[1750903034311,6.8838,145.19,145.16,6.23006101]
[1750903034809,6.8842,145.18,145.16,6.23006101]
[1750903035006,6.8842,145.18,145.15,6.23006101]
[1750903036107,594.72,145.35,145.16,40.67289651]
[1750903036306,3.41289651,145.28,145.21,9.64295752]
[1750903036602,3.41289651,145.28,145.22,6.23006101]
[1750903037002,3.41289651,145.28,145.21,9.64295752]
[1750903037204,6.8812,145.25,145.22,6.23006101]
[1750903037900,6.8812,145.25,145.21,9.64295752]
[1750903038201,6.8815,145.24,145.22,6.23006101]
[1750903038400,6.8815,145.24,145.21,6.23006101]
[1750903039209,6.8815,145.24,145.22,6.23006101]
[1750903039707,6.8815,145.24,145.21,6.23006101]
[1750903039911,6.8809,145.25,145.21,6.23006101]
[1750903040211,8.17526498,145.28,145.22,6.23006101]
[1750903040409,8.17526498,145.28,145.21,6.23006101]
[1750903040708,6.8814,145.24,145.21,6.23006101]
[1750903041408,37.26,145.25,145.18,6.23006101]
[1750903041609,3.41076498,145.24,145.18,6.23006101]
[1750903043201,3.41076498,145.22,145.16,6.23006101]
[1750903043508,37.26,145.21,145.16,6.23006101]
[1750903043704,6.8839,145.19,145.16,6.23006101]
[1750903044218,6.8839,145.19,145.17,6.23006101]
[1750903045210,6.8842,145.18,145.17,6.23006101]
[1750903045417,6.8842,145.18,145.16,6.23006101]
[1750903046216,6.8842,145.18,145.17,6.23006101]
[1750903046914,6.8842,145.18,145.15,8.43885952]
[1750903046915,6.8846,145.17,145.16,6.23006101]
[1750903047416,6.8846,145.17,145.15,8.43885952]
[1750903047617,37.26,145.21,145.15,8.43885952]
[1750903047618,6.8851,145.16,145.15,8.43885952]
[1750903047807,6.8851,145.16,145.14,8.43885952]
[1750903048015,37.26,145.17,145.15,6.31758372]
[1750903048212,37.26,145.17,145.1,125.0]
[1750903048213,3.41076498,145.16,145.12,8.43885952]
[1750903048413,3.41076498,145.14,145.08,8.43885952]
[1750903048609,40.67076498,145.14,145.09,8.43885952]
[1750903049017,40.67076498,145.14,145.08,11.8496245]
[1750903049217,37.26,145.14,145.1,8.43885952]
[1750903049718,37.26,145.14,145.1,15.32645952]
[1750903049915,37.28,145.17,145.12,8.43885952]
[1750903050420,6.8852,145.16,145.12,8.43885952]
[1750903052921,6.8852,145.16,145.12,15.32565952]
[1750903055022,6.8843,145.18,145.13,6.8862]
[1750903055321,43.15366498,145.2,145.13,6.8862]
[1750903055713,6.885,145.17,145.12,18.7365245]
[1750903056014,6.885,145.17,145.12,11.8496245]
[1750903057625,6.885,145.17,145.13,6.8865]
[1750903058526,6.8843,145.18,145.13,6.8865]
[1750903058825,6.8843,145.18,145.13,15.32535952]
[1750903059428,6.8847,145.17,145.13,15.32535952]
[1750903060725,6.8847,145.17,145.13,8.43885952]
[1750903061220,6.8847,145.17,145.12,20.9945245]
[1750903061527,40.53076498,145.16,145.11,2.3844]
[1750903062121,6.8869,145.13,145.11,2.3844]
[1750903063927,40.53076498,145.16,145.09,8.43885952]
[1750903064122,3.41076498,145.14,145.08,8.43885952]
[1750903064725,6.8876,145.11,145.08,8.43885952]
[1750903064927,3.41076498,145.14,145.08,8.43885952]
[1750903065430,3.41076498,145.14,145.07,17.76075952]
[1750903065628,6.8874,145.12,145.07,17.76075952]
[1750903068127,37.12,145.16,145.08,11.8496245]
[1750903068320,37.12,145.16,145.1,3.41076498]
[1750903068517,37.12,145.16,145.11,8.43885952]
[1750903068721,6.886,145.15,145.1,18.7374245]
[1750903069728,6.886,145.15,145.11,6.8873]
[1750903070024,2.4629,145.2,145.1,48.9696245]
[1750903070230,37.12,145.19,145.12,11.8496245]
[1750903070522,6.8843,145.18,145.13,9.2288]
[1750903070731,37.12,145.19,145.13,2.3427]
[1750903070925,37.12,145.22,145.16,3.41076498]
[1750903071327,37.12,145.22,145.18,6.8842]
[1750903071528,37.12,145.22,145.18,10.29496498]
[1750903072330,44.0026,145.22,145.18,3.41076498]
[1750903077042,44.0026,145.22,145.18,10.29486498]
[1750903078040,44.0026,145.22,145.18,3.41076498]
[1750903078234,6.8826,145.22,145.18,3.41076498]
[1750903078437,6.8819,145.23,145.18,3.41076498]
[1750903078624,37.12,145.25,145.18,3.41076498]
[1750903079032,6.8831,145.21,145.18,3.41076498]
[1750903080544,37.12,145.25,145.18,3.41076498]
[1750903080747,3.41076498,145.22,145.16,8.43885952]
[1750903081042,6.8836,145.2,145.15,18.7349245]
[1750903082241,3.41076498,145.22,145.15,18.7349245]
[1750903082242,6.8839,145.19,145.15,18.7349245]
[1750903083039,6.8833,145.2,145.16,6.8851]
[1750903083242,6.8833,145.2,145.16,15.32395952]
[1750903083938,6.8837,145.19,145.16,8.43885952]
[1750903084438,6.8837,145.19,145.17,8.43885952]
[1750903084641,6.8834,145.2,145.17,8.43885952]
[1750903085333,6.8837,145.19,145.16,8.43885952]
[1750903086344,6.8834,145.2,145.16,15.32365952]
[1750903086644,6.8834,145.2,145.17,8.43885952]
[1750903087439,3.41076498,145.24,145.16,8.43885952]
[1750903088049,6.8842,145.18,145.16,8.43885952]
[1750903088251,6.8842,145.18,145.15,11.8496245]
[1750903089144,6.8842,145.18,145.15,8.43885952]
[1750903090346,6.8847,145.17,145.15,8.43885952]
[1750903091250,6.8843,145.18,145.15,8.43885952]
[1750903091452,36.98,145.21,145.15,11.8496245]
[1750903091744,40.39076498,145.24,145.17,3.41076498]
[1750903091949,6.8827,145.22,145.17,18.7339245]
[1750903092946,6.8829,145.21,145.17,18.7339245]
[1750903093143,36.98,145.24,145.17,11.8496245]
[1750903093339,36.98,145.24,145.19,11.8496245]
[1750903093943,6.882,145.23,145.19,21.0101245]
[1750903095146,36.98,145.24,145.19,14.1268245]
[1750903095352,36.98,145.24,145.18,8.43885952]
[1750903095649,3.41076498,145.23,145.17,133.43885952]
[1750903097556,6.8836,145.2,145.17,133.43885952]
[1750903097751,6.8836,145.2,145.17,8.43885952]
[1750903099956,36.98,145.24,145.17,8.43885952]
[1750903100155,3.41076498,145.23,145.17,8.43885952]
[1750903100459,6.8836,145.2,145.17,8.43885952]
[1750903100653,3.41076498,145.23,145.17,8.43885952]
[1750903101055,3.41076498,145.21,145.17,8.43885952]
[1750903101258,36.98,145.2,145.15,8.43885952]
[1750903102163,6.8846,145.18,145.15,8.43885952]
[1750903102868,36.98,145.2,145.14,10.68165952]
[1750903103571,6.885,145.17,145.14,10.68165952]
[1750903103777,36.98,145.2,145.14,10.68165952]
[1750903104675,6.885,145.17,145.14,10.68165952]
[1750903105380,6.8842,145.18,145.14,10.68165952]
[1750903105567,36.98,145.2,145.14,10.68165952]
[1750903106074,3.41076498,145.19,145.14,10.68165952]
[1750903106274,3.41076498,145.19,145.13,8.43885952]
[1750903106670,6.8855,145.16,145.13,8.43885952]
[1750903106873,36.98,145.2,145.13,11.8496245]
[1750903107073,36.98,145.2,145.14,8.43885952]
[1750903107273,6.8845,145.18,145.14,15.32465952]
[1750903107476,36.98,145.2,145.14,15.32465952]
[1750903107972,6.8843,145.18,145.14,15.32465952]
[1750903108379,36.98,145.2,145.16,6.31904065]
[1750903109381,36.98,145.2,145.17,6.31904065]
[1750903109578,6.8841,145.19,145.17,6.31904065]
[1750903110480,6.8842,145.18,145.17,6.31904065]
[1750903112483,6.8842,145.18,145.16,8.43885952]
[1750903113182,6.8846,145.17,145.16,8.43885952]
[1750903114285,6.8842,145.18,145.16,8.43885952]
[1750903114486,6.8842,145.18,145.17,8.43885952]
[1750903116590,6.8839,145.19,145.17,8.43885952]
[1750903119681,6.8839,145.19,145.18,8.43885952]
[1750903125695,43.8634,145.2,145.18,8.43885952]
[1750903125895,36.98,145.2,145.18,8.43885952]
[1750903126095,36.84,145.23,145.19,8.43885952]
[1750903126288,36.84,145.23,145.21,6.33410179]
[1750903126688,6.8827,145.22,145.21,6.33410179]
[1750903127890,6.8827,145.22,145.2,8.43885952]
[1750903130095,6.8827,145.22,145.21,8.43885952]
[1750903130494,6.8828,145.21,145.2,8.43885952]
[1750903130895,40.25076498,145.23,145.19,8.43885952]
[1750903131099,3.41076498,145.21,145.17,133.43885952]
[1750903131397,3.41076498,145.19,145.17,125.0]
[1750903131601,3.41076498,145.19,145.16,8.43885952]
[1750903133203,6.8842,145.18,145.16,8.43885952]
[1750903133698,3.41076498,145.19,145.16,8.43885952]
[1750903134590,6.8846,145.17,145.16,8.43885952]
[1750903137008,10.29536498,145.17,145.16,8.43885952]
[1750903137203,3.41076498,145.17,145.13,8.43885952]
[1750903138011,6.8861,145.14,145.13,8.43885952]
[1750903138195,3.41076498,145.15,145.12,8.43885952]
[1750903138396,3.41076498,145.13,145.11,8.43885952]
[1750903138601,3.41076498,145.13,145.1,10.71245952]
[1750903138602,6.8875,145.11,145.1,10.71245952]
[1750903138909,40.25076498,145.18,145.1,5.68436498]
[1750903139108,40.25076498,145.18,145.13,8.44770695]
[1750903139503,6.8855,145.16,145.13,8.44770695]
[1750903139704,40.25076498,145.18,145.13,8.44770695]
[1750903140097,40.25076498,145.18,145.14,8.44770695]
[1750903140300,36.84,145.21,145.15,8.44770695]
[1750903140500,36.84,145.21,145.19,8.44770695]
[1750903140706,6.8832,145.2,145.18,8.44770695]
[1750903142705,2.3187,145.25,145.18,8.44770695]
[1750903142913,634.95076498,145.26,145.2,8.44770695]
[1750903143309,6.8817,145.24,145.2,8.44770695]
[1750903144012,6.8818,145.23,145.2,8.44770695]
[1750903144214,634.95076498,145.26,145.2,8.44770695]
[1750903144412,3.41076498,145.24,145.2,8.44770695]
[1750903144613,3.41076498,145.24,145.19,8.44770695]
[1750903145306,6.8827,145.22,145.19,8.44770695]
[1750903146818,6.8828,145.21,145.19,8.44770695]